bitfinex-derivatives/quotes_SOLF0:USTF0_20250505
["timestamp","ask_amount","ask_price","bid_price","bid_amount"]
[1746475992470,6.8365,146.3,146.24,24.12]
[1746475992867,6.8365,146.3,146.28,6.837]
[1746475995267,30.9559,146.31,146.29,6.8365]
[1746475995469,2.0988,146.35,146.25,2.0105]
[1746475995671,24.12,146.34,146.26,11.40723647]
[1746475995870,24.12,146.34,146.26,13.33953647]
[1746475996176,24.12,146.34,146.27,2.0721]
[1746475996374,24.12,146.34,146.28,24.12]
[1746475996570,30.9546,146.34,146.28,24.12]
[1746475997079,30.9546,146.34,146.31,6.8355]
[1746475997677,6.8349,146.33,146.31,6.8355]
[1746475998177,30.9547,146.34,146.31,6.8355]
[1746475998377,24.12,146.34,146.31,6.8355]
[1746475999272,24.12,146.34,146.3,6.8361]
[1746476000179,6.8351,146.33,146.3,6.8361]
[1746476000576,6.8351,146.33,146.31,6.8357]
[1746476001274,24.12,146.36,146.28,24.12]
[1746476001475,24.12,146.36,146.29,11.40723647]
[1746476001972,6.8345,146.34,146.31,6.8354]
[1746476002182,24.12,146.36,146.31,6.8354]
[1746476002375,6.8348,146.34,146.31,6.8354]
[1746476003281,6.8348,146.34,146.32,6.8352]
[1746476004178,24.12,146.36,146.29,11.40723647]
[1746476004384,24.12,146.36,146.28,24.12]
[1746476004781,24.12,146.36,146.3,6.8359]
[1746476005782,6.8352,146.33,146.3,6.8359]
[1746476006983,24.12,146.36,146.3,6.8359]
[1746476007880,6.8354,146.32,146.3,6.8359]
[1746476008083,24.12,146.36,146.31,6.8358]
[1746476008585,6.8348,146.34,146.31,6.8358]
[1746476008784,24.12,146.36,146.3,6.836]
[1746476009082,24.12,146.36,146.28,24.12]
[1746476009279,6.8348,146.34,146.31,6.8357]
[1746476009480,24.12,146.36,146.31,6.8357]
[1746476009786,6.8348,146.34,146.31,6.8357]
[1746476012292,6.8348,146.33,146.31,6.8357]
[1746476013985,6.8345,146.34,146.31,6.8357]
[1746476016089,6.8345,146.34,146.32,6.8352]
[1746476016292,24.12,146.39,146.29,11.40723647]
[1746476016788,6.8335,146.36,146.33,6.8344]
[1746476017191,2.1333,146.4,146.3,2.094]
[1746476017482,24.12,146.39,146.31,1.9762]
[1746476017689,24.12,146.39,146.32,24.12]
[1746476018692,6.833,146.37,146.35,6.8337]
[1746476024398,6.8327,146.38,146.35,6.8337]
[1746476025794,11.40723647,146.44,146.35,6.8337]
[1746476025795,541.38,146.45,146.35,11.40723647]
[1746476025994,565.48,146.45,146.35,11.40723647]
[1746476026197,565.48,146.45,146.36,24.1]
[1746476027095,6.8309,146.42,146.39,6.8318]
[1746476028298,565.48,146.45,146.36,24.1]
[1746476028495,11.40723647,146.44,146.36,24.1]
[1746476029294,1.9412,146.43,146.36,24.1]
[1746476029496,1.9412,146.43,146.35,6.8337]
[1746476029698,11.40723647,146.41,146.33,24.1]
[1746476029895,6.8333,146.37,146.34,6.8339]
[1746476033601,24.1,146.4,146.33,30.9346]
[1746476034199,6.8339,146.36,146.33,30.9346]
[1746476034400,24.1,146.4,146.33,30.9346]
[1746476035003,11.40723647,146.38,146.3,26.194]
[1746476035203,1.9521,146.37,146.3,24.1]
[1746476035501,24.1,146.36,146.32,6.8352]
[1746476035897,24.1,146.36,146.3,24.1]
[1746476036101,6.8346,146.34,146.31,6.8355]
[1746476037108,6.8349,146.33,146.3,30.9361]
[1746476037300,24.1,146.36,146.3,24.1]
[1746476038808,6.8346,146.34,146.32,6.8352]
[1746476039806,6.8346,146.34,146.3,24.1]
[1746476039807,6.8341,146.35,146.33,6.8348]
[1746476040608,6.8341,146.35,146.32,6.8351]
[1746476042112,6.8341,146.35,146.33,6.8348]
[1746476043012,30.9336,146.36,146.33,6.8348]
[1746476043314,30.9336,146.36,146.34,6.8343]
[1746476045615,30.9336,146.36,146.33,6.8346]
[1746476045807,30.9336,146.36,146.3,24.1]
[1746476046216,30.9336,146.36,146.34,6.8343]
[1746476049416,24.1,146.36,146.35,6.8339]
[1746476049914,6.8332,146.37,146.35,6.8339]
[1746476050313,24.1,146.39,146.3,24.1]
[1746476050520,24.1,146.39,146.31,15.49123647]
[1746476051118,6.8328,146.38,146.35,6.8336]
[1746476051314,24.1,146.39,146.35,6.8336]
[1746476052120,24.1,146.39,146.34,6.8342]
[1746476052519,24.1,146.39,146.31,4.084]
[1746476052924,6.8337,146.36,146.33,6.8345]
[1746476053220,24.1,146.39,146.33,6.8345]
[1746476053922,6.8339,146.35,146.33,6.8345]
[1746476054624,24.1,146.39,146.3,24.1]
[1746476055314,6.8343,146.35,146.32,6.8353]
[1746476055514,24.1,146.39,146.32,6.8353]
[1746476056624,6.8346,146.34,146.32,6.8353]
[1746476056824,35.50723647,146.39,146.3,30.9361]
[1746476057030,2.0069,146.38,146.28,109.30406052]
[1746476057222,6.8356,146.32,146.3,6.8361]
[1746476057419,24.1,146.35,146.28,109.30406052]
[1746476057725,30.9341,146.35,146.28,122.84349699]
[1746476058327,30.9341,146.35,146.32,6.835]
[1746476058526,30.9341,146.35,146.29,4.0632]
[1746476058527,24.1,146.35,146.29,4.0632]
[1746476058824,6.8337,146.36,146.33,6.8348]
[1746476059925,6.834,146.35,146.33,6.8348]
[1746476061428,6.834,146.35,146.32,6.835]
[1746476063237,6.8345,146.34,146.32,6.835]
[1746476063930,6.8345,146.34,146.31,30.9355]
[1746476064428,24.1,146.38,146.31,24.1]
[1746476064626,35.50723647,146.38,146.29,10.8997]
[1746476064827,2.0123,146.37,146.29,10.8997]
[1746476065126,6.8355,146.32,146.29,10.8997]
[1746476066323,2.0123,146.37,146.28,142.37336052]
[1746476066525,24.1,146.34,146.28,133.40406052]
[1746476067023,6.8365,146.3,146.28,133.40406052]
[1746476067425,6.8365,146.3,146.29,1.0]
[1746476067931,6.836,146.31,146.29,1.0]
[1746476069832,6.836,146.31,146.29,7.8367]
[1746476070432,6.8356,146.32,146.29,7.8367]
[1746476073037,6.8359,146.31,146.29,7.8367]
[1746476073534,6.8359,146.31,146.29,1.0]
[1746476073736,6.8362,146.3,146.29,1.0]
[1746476075736,6.836,146.31,146.29,1.0]
[1746476076038,24.1,146.34,146.29,1.0]
[1746476076237,6.8362,146.3,146.29,1.0]
[1746476081844,30.9362,146.3,146.29,1.0]
[1746476087747,6.8372,146.28,146.27,1.0]
[1746476096050,6.8383,146.26,146.23,10.8417]
[1746476099657,6.8383,146.26,146.23,6.8393]
[1746476099860,6.8383,146.26,146.24,6.839]
[1746476100555,24.1,146.3,146.19,35.50723647]
[1746476100860,24.1,146.3,146.19,24.1]
[1746476101058,6.8395,146.23,146.19,24.1]
[1746476101451,24.1,146.26,146.19,24.1]
[1746476101651,24.1,146.26,146.22,6.84]
[1746476102557,24.1,146.26,146.23,6.8393]
[1746476103163,30.9383,146.26,146.23,6.8393]
[1746476103656,24.1,146.26,146.23,6.8393]
[1746476104156,30.9383,146.26,146.23,6.8393]
[1746476104565,30.9383,146.26,146.24,6.839]
[1746476106267,30.9383,146.26,146.23,6.8394]
[1746476109270,4.0466,146.31,146.19,37.7828]
[1746476109462,24.1,146.31,146.22,11.40723647]
[1746476109662,24.1,146.31,146.23,30.4226]
[1746476109967,31.40423484,146.31,146.25,7.30423484]
[1746476110868,6.837,146.29,146.26,6.8378]
[1746476111567,6.8364,146.3,146.25,7.30423484]
[1746476111767,24.1,146.31,146.24,11.40957986]
[1746476111966,6.8351,146.33,146.3,6.8359]
[1746476112167,24.1,146.34,146.3,6.8359]
[1746476112470,6.8351,146.33,146.3,6.8359]
[1746476113471,30.9346,146.34,146.31,6.8356]
[1746476113875,24.1,146.34,146.31,6.8356]
[1746476114369,24.1,146.34,146.32,6.8353]
[1746476114570,24.1,146.34,146.29,2.0872]
[1746476114775,6.8337,146.36,146.29,2.0872]
[1746476114975,6.8337,146.36,146.33,6.8346]
[1746476115275,6.834,146.35,146.33,6.8346]
[1746476115575,24.1,146.37,146.29,2.0872]
[1746476116176,11.40957986,146.36,146.28,8.9705]
[1746476116578,6.8361,146.31,146.28,6.8369]
[1746476116874,24.1,146.33,146.27,24.1]
[1746476117076,24.1,146.33,146.25,2.0275]
[1746476117273,6.8368,146.29,146.25,2.0275]
[1746476117575,24.1,146.33,146.25,2.0275]
[1746476117878,6.836,146.31,146.27,6.8374]
[1746476118177,24.1,146.33,146.25,2.0275]
[1746476118674,30.9349,146.33,146.3,6.836]
[1746476119377,6.8354,146.32,146.3,6.836]
[1746476119566,6.8354,146.32,146.29,6.8365]
[1746476121374,6.8365,146.3,146.27,6.8375]
[1746476121570,6.8365,146.3,146.25,2.0275]
[1746476121875,6.836,146.31,146.28,6.8369]
[1746476123276,6.836,146.31,146.29,6.8367]
[1746476123477,6.8355,146.32,146.29,6.8367]
[1746476124975,6.8355,146.32,146.3,6.8362]
[1746476125275,6.8355,146.32,146.25,2.0275]
[1746476125576,6.8355,146.32,146.29,6.8364]
[1746476125777,6.8355,146.32,146.25,2.0275]
[1746476126971,6.8355,146.32,146.3,6.8361]
[1746476128981,6.8355,146.32,146.29,6.8364]
[1746476129171,6.8355,146.32,146.25,2.0275]
[1746476130079,6.8355,146.32,146.26,1.0]
[1746476130378,6.8355,146.32,146.3,6.836]
[1746476131378,4.0648,146.39,146.28,24.1]
[1746476131581,24.1,146.38,146.29,15.37217986]
[1746476131880,30.9327,146.38,146.29,15.37217986]
[1746476132076,30.9327,146.38,146.35,6.8339]
[1746476132278,30.9326,146.38,146.3,2.0887]
[1746476132777,30.9326,146.38,146.35,6.8338]
[1746476132985,6.833,146.37,146.35,6.8338]
[1746476134275,6.8334,146.36,146.34,6.8343]
[1746476134475,24.1,146.38,146.34,6.8343]
[1746476135281,24.1,146.38,146.31,24.1]
[1746476135882,24.1,146.38,146.32,6.8351]
[1746476136085,6.8342,146.35,146.32,6.8351]
[1746476141392,6.8342,146.35,146.33,6.8347]
[1746476141690,6.8337,146.36,146.33,6.8347]
[1746476141896,24.1,146.38,146.33,6.8347]
[1746476142590,6.8338,146.36,146.33,6.8347]
[1746476144290,6.8339,146.35,146.33,6.8347]
[1746476144593,6.8339,146.35,146.32,6.8351]
[1746476145194,6.8339,146.35,146.33,6.8347]
[1746476146196,6.8337,146.36,146.33,6.8347]
[1746476146397,6.8337,146.36,146.34,6.8344]
[1746476147597,6.8339,146.35,146.32,6.8349]
[1746476147893,6.8339,146.35,146.31,24.1]
[1746476148096,6.8339,146.35,146.33,6.8345]
[1746476148396,6.8337,146.36,146.33,6.8345]
[1746476148597,24.1,146.38,146.33,6.8345]
[1746476149296,6.8337,146.36,146.33,6.8345]
[1746476150390,6.834,146.35,146.33,6.8345]
[1746476150588,24.1,146.38,146.34,6.8344]
[1746476150892,6.8337,146.36,146.34,6.8344]
[1746476153601,6.8339,146.35,146.33,6.8346]
[1746476154195,6.8339,146.35,146.34,6.8344]
[1746476154395,6.8339,146.35,146.31,24.1]
[1746476154799,6.8339,146.35,146.33,6.8345]
[1746476155099,6.8339,146.35,146.31,24.1]
[1746476155699,6.8339,146.35,146.32,7.2976194]
[1746476156102,6.8339,146.35,146.33,6.8346]
[1746476161610,24.1,146.38,146.32,7.2976194]
[1746476162308,6.8335,146.36,146.32,7.2976194]
[1746476162605,24.1,146.38,146.34,7.2976194]
[1746476163005,6.833,146.37,146.36,6.8334]
[1746476164207,30.9328,146.38,146.36,6.8334]
[1746476165113,30.9328,146.38,146.35,6.8336]
[1746476165608,30.9328,146.38,146.34,7.2976194]
[1746476165810,30.9328,146.38,146.35,6.8338]
[1746476166208,30.9328,146.38,146.36,6.8334]
[1746476166905,7.2976194,146.41,146.31,24.1]
[1746476167209,24.08,146.42,146.38,7.2976194]
[1746476167809,24.08,146.42,146.35,35.47332811]
[1746476167998,6.8311,146.41,146.35,35.47332811]
[1746476168203,24.08,146.42,146.35,35.47332811]
[1746476168709,30.9111,146.42,146.39,6.8319]
[1746476169008,24.08,146.42,146.39,6.8319]
[1746476169210,6.8312,146.41,146.39,6.8319]
[1746476169910,6.8308,146.42,146.35,35.47332811]
[1746476170213,6.8308,146.42,146.36,6.1509]
[1746476170809,24.06,146.52,146.41,11.39332811]
[1746476171009,2.054,146.5,146.42,24.06]
[1746476171206,6.8277,146.49,146.45,6.8292]
[1746476171607,2.054,146.5,146.42,24.06]
[1746476171806,2.054,146.5,146.46,6.8288]
[1746476172110,2.054,146.5,146.42,24.06]
[1746476172411,8.881,146.5,146.42,24.06]
[1746476172912,8.881,146.5,146.46,6.8285]
[1746476173512,8.881,146.5,146.42,24.06]
[1746476174316,6.8275,146.49,146.46,6.8286]
[1746476174915,6.8275,146.49,146.45,6.8291]
[1746476175215,6.8279,146.48,146.45,6.8291]
[1746476176116,2.054,146.5,146.44,11.39332811]
[1746476176317,24.06,146.52,146.44,11.39332811]
[1746476176910,30.8861,146.52,146.49,6.827]
[1746476177513,30.8861,146.52,146.47,6.8282]
[1746476177717,30.8861,146.52,146.46,24.06]
[1746476177718,6.8265,146.51,146.46,24.06]
[1746476178118,6.8265,146.51,146.46,30.8885]
[1746476178516,6.8269,146.5,146.46,30.8885]
[1746476180819,6.8276,146.49,146.46,30.8885]
[1746476182721,6.8283,146.47,146.46,24.06]
[1746476183315,6.8281,146.48,146.46,24.06]
[1746476183515,24.06,146.52,146.46,24.06]
[1746476183821,6.8279,146.48,146.46,30.8888]
[1746476184025,6.8279,146.48,146.46,24.06]
[1746476184322,6.8276,146.49,146.46,30.8885]
[1746476185018,6.828,146.48,146.46,24.06]
[1746476187426,6.828,146.48,146.46,30.8887]
[1746476188420,6.828,146.48,146.46,24.06]
[1746476189928,6.828,146.48,146.46,30.8888]
[1746476192635,6.828,146.48,146.46,24.06]
[1746476192840,6.828,146.48,146.46,25.06]
[1746476196839,6.828,146.48,146.46,31.8887]
[1746476197639,6.8276,146.49,146.46,31.8887]
[1746476199537,6.8276,146.49,146.47,6.8283]
[1746476199744,6.8276,146.49,146.47,14.11109281]
[1746476200836,6.8276,146.49,146.47,7.28279281]
[1746476201441,24.06,146.52,146.47,7.28279281]
[1746476202143,6.8278,146.48,146.47,7.28279281]
[1746476202444,24.06,146.52,146.47,7.28279281]
[1746476203446,6.8276,146.49,146.47,7.28279281]
[1746476204438,6.8262,146.52,146.47,7.28279281]
[1746476204646,9.30739281,146.57,146.51,7.28279281]
[1746476205140,6.8245,146.56,146.51,7.28279281]
[1746476205546,2.0246,146.57,146.53,7.28279281]
[1746476205743,2.0246,146.57,146.55,6.8244]
[1746476206047,24.04,146.6,146.55,7.28279281]
[1746476206251,30.8625,146.6,146.56,6.8239]
[1746476206546,30.8625,146.6,146.55,7.28279281]
[1746476206846,30.8625,146.6,146.57,6.8235]
[1746476207539,6.8227,146.59,146.56,6.8239]
[1746476211046,1.9927,146.62,146.54,24.04]
[1746476211350,6.8224,146.6,146.58,6.8232]
[1746476211948,6.8224,146.6,146.57,6.8234]
[1746476212247,6.8219,146.61,146.54,26.0183]
[1746476212447,6.8219,146.61,146.58,6.8229]
[1746476213349,8.8143,146.62,146.59,6.8227]
[1746476214245,6.8211,146.63,146.6,6.8222]
[1746476214849,6.8213,146.62,146.59,6.8225]
[1746476215847,6.8218,146.61,146.59,6.8225]
[1746476216154,28.1486,146.66,146.6,6.8221]
[1746476216347,28.1486,146.66,146.58,24.02]
[1746476216753,28.1486,146.66,146.59,6.8226]
[1746476216955,6.8216,146.62,146.59,6.8226]
[1746476217451,6.8219,146.61,146.58,30.843]
[1746476217750,28.1486,146.66,146.58,24.02]
[1746476217751,39.51449932,146.66,146.58,24.02]
[1746476218147,39.51449932,146.66,146.56,6.8239]
[1746476218851,39.51449932,146.66,146.55,30.8444]
[1746476219446,6.8234,146.58,146.55,30.8444]
[1746476219850,24.02,146.62,146.55,24.02]
[1746476220051,6.8239,146.57,146.55,24.02]
[1746476220356,11.36589932,146.6,146.55,24.02]
[1746476220747,6.8241,146.56,146.54,6.8249]
[1746476221648,11.36589932,146.6,146.54,6.8249]
[1746476221846,6.8239,146.57,146.54,6.8249]
[1746476226654,6.8239,146.57,146.55,6.8245]
[1746476226856,6.8239,146.57,146.52,24.02]
[1746476227256,6.8239,146.57,146.54,6.8247]
[1746476227555,6.8241,146.56,146.52,24.02]
[1746476227757,4.1616,146.6,146.52,24.02]
[1746476228050,4.1616,146.6,146.53,6.8255]
[1746476228858,6.8244,146.56,146.53,6.8255]
[1746476229657,6.8244,146.56,146.54,6.825]
[1746476229856,6.8239,146.57,146.54,6.825]
[1746476231957,6.8241,146.56,146.54,6.825]
[1746476232658,6.8241,146.56,146.53,6.8253]
[1746476233160,4.1616,146.6,146.52,30.8458]
[1746476233457,4.1616,146.6,146.51,0.31821]
[1746476233860,6.8257,146.53,146.51,0.31821]
[1746476234159,24.0,146.56,146.51,0.31821]
[1746476234864,6.826,146.52,146.51,0.31821]
[1746476238563,6.826,146.52,146.49,30.8272]
[1746476241261,6.826,146.52,146.49,24.0]
[1746476241468,6.826,146.52,146.5,6.8269]
[1746476241861,6.826,146.52,146.49,30.8271]
[1746476243572,6.826,146.52,146.5,6.8269]
[1746476245570,6.8257,146.53,146.51,6.8264]
[1746476247366,6.8257,146.53,146.5,6.8267]
[1746476247575,6.826,146.52,146.5,6.8267]
[1746476248073,6.8257,146.53,146.5,6.8267]
[1746476249572,6.8253,146.54,146.49,24.0]
[1746476249775,2.0726,146.55,146.5,11.36589932]
[1746476250073,24.0,146.56,146.5,11.36589932]
[1746476250764,30.8245,146.56,146.53,6.8252]
[1746476251777,6.8247,146.55,146.53,6.8252]
[1746476253967,6.8252,146.54,146.5,11.36589932]
[1746476254673,6.8252,146.54,146.51,6.8264]
[1746476254877,6.8252,146.54,146.5,11.36589932]
[1746476255576,6.8252,146.54,146.53,1.0]
[1746476256589,6.8269,146.5,146.49,24.0]
[1746476256789,6.8269,146.5,146.47,11.36589932]
[1746476257489,6.8269,146.5,146.48,6.8276]
[1746476261690,6.8274,146.49,146.47,6.8281]
[1746476261878,24.02,146.55,146.47,6.8281]
[1746476262288,6.8271,146.5,146.47,6.8281]
[1746476262689,6.8271,146.5,146.48,6.8278]
[1746476263691,6.8267,146.51,146.48,6.8278]
[1746476265391,6.8261,146.52,146.49,6.8274]
[1746476265690,24.02,146.55,146.49,6.8274]
[1746476267193,6.8267,146.51,146.49,6.8274]
[1746476272395,6.8269,146.5,146.48,6.8277]
[1746476275094,6.8269,146.5,146.47,6.8281]
[1746476275486,6.8267,146.51,146.46,27.1024]
[1746476276494,6.8267,146.51,146.48,6.8274]
[1746476277295,6.8267,146.51,146.49,6.8273]
[1746476279095,6.8269,146.5,146.48,6.8276]
[1746476280490,6.8267,146.51,146.49,6.8274]
[1746476280696,28.0549,146.55,146.46,27.1024]
[1746476281798,6.8265,146.51,146.49,6.8272]
[1746476285298,6.8265,146.51,146.48,6.8276]
[1746476285497,6.8269,146.5,146.48,6.8276]
[1746476285697,6.8269,146.5,146.49,7.28063851]
[1746476285898,28.0549,146.55,146.49,7.28063851]
[1746476286298,6.8268,146.51,146.49,7.28063851]
[1746476286799,6.8268,146.51,146.49,14.10793851]
[1746476287794,28.0549,146.55,146.49,7.28063851]
[1746476287996,24.02,146.55,146.51,7.28063851]
[1746476288897,6.8255,146.54,146.51,7.28063851]
[1746476289098,24.02,146.55,146.53,7.28063851]
[1746476289601,30.8449,146.55,146.53,7.28063851]
[1746476290501,6.825,146.54,146.53,7.28063851]
[1746476290700,6.825,146.54,146.52,6.8256]
[1746476291502,6.825,146.54,146.51,14.10683851]
[1746476291704,6.8255,146.53,146.51,14.10683851]
[1746476292104,24.02,146.55,146.52,6.8259]
[1746476292292,6.8253,146.54,146.52,6.8259]
[1746476292605,2.1069,146.56,146.53,6.8255]
[1746476293003,6.825,146.55,146.51,7.28063851]
[1746476293501,6.825,146.55,146.52,6.8257]
[1746476293701,6.8251,146.54,146.52,6.8257]
[1746476294503,6.8248,146.55,146.52,6.8259]
[1746476294903,6.8248,146.55,146.53,7.28063851]
[1746476295203,6.825,146.54,146.53,7.28063851]
[1746476298004,6.8256,146.53,146.51,14.10683851]
[1746476298206,7.28063851,146.54,146.48,14.10813851]
[1746476299506,6.8268,146.51,146.48,14.10813851]
[1746476299708,6.8268,146.51,146.48,6.8275]
[1746476300807,6.8268,146.51,146.49,6.8273]
[1746476301208,2.1069,146.56,146.48,11.37784902]
[1746476301409,2.1069,146.56,146.48,13.36434902]
[1746476301705,24.0,146.57,146.51,11.37784902]
[1746476301910,564.64,146.6,146.51,35.37784902]
[1746476302305,6.8238,146.57,146.52,2.0759]
[1746476302505,24.0,146.6,146.52,2.0759]
[1746476302711,6.8241,146.56,146.54,6.8248]
[1746476302906,24.0,146.6,146.52,2.0759]
[1746476303812,6.8238,146.57,146.54,6.8249]
[1746476304008,6.8238,146.57,146.52,2.0759]
[1746476304413,6.8238,146.57,146.55,6.8245]
[1746476304614,24.0,146.6,146.52,2.0759]
[1746476304816,24.0,146.6,146.54,11.37784902]
[1746476305313,6.8232,146.59,146.54,11.37784902]
[1746476305712,24.0,146.6,146.56,6.8239]
[1746476306316,24.0,146.6,146.55,6.8244]
[1746476307316,6.8236,146.58,146.55,6.8244]
[1746476307509,24.0,146.6,146.55,6.8244]
[1746476309716,6.8235,146.58,146.56,6.8241]
[1746476310113,6.8235,146.58,146.54,11.37784902]
[1746476310314,24.0,146.6,146.52,2.0759]
[1746476310514,24.0,146.6,146.51,24.0]
[1746476311317,24.0,146.6,146.51,30.8264]
[1746476311817,6.8253,146.54,146.51,30.8264]
[1746476312717,6.8253,146.54,146.52,6.8258]
[1746476315214,6.8253,146.54,146.51,30.8262]
[1746476317517,6.8253,146.54,146.52,6.8259]
[1746476318419,6.8253,146.54,146.51,31.8262]
[1746476319520,6.8248,146.55,146.52,6.8258]
[1746476319719,6.8248,146.55,146.51,25.0]
[1746476320020,6.8248,146.55,146.52,6.8257]
[1746476322125,6.8248,146.55,146.51,25.0]
[1746476322126,6.8248,146.55,146.53,6.8255]
[1746476325226,6.8243,146.56,146.54,6.825]
[1746476325423,24.0,146.6,146.51,25.0]
[1746476325929,6.8237,146.57,146.55,6.8243]
[1746476326526,6.8237,146.57,146.54,6.8248]
[1746476326825,6.8242,146.56,146.54,6.8248]
[1746476327030,6.8242,146.56,146.53,6.8253]
[1746476331128,6.8246,146.55,146.53,6.8253]
[1746476332021,24.0,146.6,146.51,25.0]
[1746476332527,6.826,146.52,146.51,1.0]
[1746476335028,23.98,146.56,146.51,1.0]
[1746476335729,30.8045,146.56,146.54,6.825]
[1746476336130,23.98,146.56,146.51,1.0]
[1746476336328,2.1144,146.58,146.55,6.8243]
[1746476336329,6.8239,146.57,146.55,6.8243]
[1746476337234,23.98,146.59,146.53,11.37784902]
[1746476337428,28.1175,146.62,146.53,11.37784902]
[1746476337827,6.8235,146.58,146.55,6.8242]
[1746476338531,6.8235,146.58,146.56,6.8241]
[1746476338931,6.8235,146.58,146.53,11.37784902]
[1746476339533,28.1175,146.62,146.55,6.8244]
[1746476341536,2.0537,146.61,146.55,6.8244]
[1746476341831,6.8236,146.58,146.55,6.8244]
[1746476344437,6.8237,146.57,146.55,6.8244]
[1746476346736,6.8234,146.58,146.55,6.8244]
[1746476346940,2.0537,146.61,146.53,11.37784902]
[1746476347239,23.98,146.62,146.53,13.35564902]
[1746476348339,6.8225,146.6,146.57,6.8232]
[1746476349038,6.8225,146.6,146.57,6.8236]
[1746476349337,6.8225,146.6,146.56,23.98]
[1746476349638,6.8225,146.6,146.57,6.8236]
[1746476350237,6.8228,146.59,146.57,6.8236]
[1746476350739,6.8225,146.6,146.57,6.8236]
[1746476354239,6.8228,146.59,146.57,6.8236]
[1746476356044,6.8235,146.58,146.56,30.8039]
[1746476357642,6.823,146.59,146.56,30.8039]
[1746476357943,23.98,146.62,146.56,30.8039]
[1746476359342,6.8234,146.58,146.56,30.8039]
[1746476360346,6.8234,146.58,146.56,23.98]
[1746476360641,23.98,146.62,146.56,23.98]
[1746476360845,1.9633,146.61,146.54,6.8246]
[1746476361141,1.9633,146.61,146.53,37.33564902]
[1746476361956,6.8235,146.58,146.55,6.8243]
[1746476362247,6.8235,146.58,146.53,37.33564902]
[1746476363249,6.8235,146.58,146.56,6.824]
[1746476364755,6.823,146.59,146.57,6.8237]
[1746476365257,6.8226,146.6,146.57,6.8237]
[1746476365457,6.8226,146.6,146.58,6.823]
[1746476365647,1.9633,146.61,146.53,37.33564902]
[1746476366055,6.8225,146.6,146.58,6.8231]
[1746476366959,6.8225,146.6,146.57,6.8234]
[1746476367158,6.8228,146.59,146.57,6.8234]
[1746476367657,1.9633,146.61,146.53,37.33564902]
[1746476368358,6.824,146.57,146.53,37.33564902]
[1746476368654,1.9633,146.61,146.53,37.33564902]
[1746476368857,6.8246,146.55,146.53,30.8053]
[1746476373761,6.825,146.54,146.53,23.98]
[1746476373961,23.98,146.58,146.5,23.98]
[1746476374862,23.98,146.58,146.51,7.8261]
[1746476375656,6.8253,146.54,146.51,7.8261]
[1746476377963,6.8257,146.53,146.51,7.8261]
[1746476378158,23.98,146.58,146.51,1.0]
[1746476378656,6.826,146.52,146.51,1.0]
[1746476383066,1.9705,146.56,146.49,1.31462]
[1746476383067,6.8269,146.5,146.49,1.31462]
[1746476383364,23.98,146.5,146.46,1.0]
[1746476383758,6.8283,146.47,146.46,1.0]
[1746476388566,1.9963,146.49,146.46,1.0]
[1746476388761,23.98,146.5,146.46,1.0]
[1746476388970,6.8283,146.47,146.46,1.0]
[1746476391366,26.0202,146.5,146.46,1.0]
[1746476391554,6.828,146.48,146.46,1.0]